Cogmind - Beta 16 @@@ ROGUE MODE // 2025.11.14 @ 04:24:38 Player: Red Box Result: Destroyed by 8R-AWN with 8R-AWN's Boregun Performance ------------- Evolutions (0) 0 Regions Visited (3) 600 Robots Destroyed (24) 120 Value Destroyed (361) 361 Prototype IDs (42) 840 Alien Tech Used (0) 0 Bonus (300) 300 TOTAL SCORE: 2221 Bonus ------- Aligned with FarCom 300 Cogmind --------- Core Integrity 0/250 Matter 188/300 Energy 36/100 System Corruption 0% Temperature Cool (0) Movement Walking (190) Ox1 Location -10/Exiles Parts ------- > --- POWER (1) -------- (None) > --- PROPULSION (2) --- Improved Aluminum Leg Improved Aluminum Leg > --- UTILITY (2) ------ Large Storage Unit Light Armor Plating > --- WEAPON (2) ------- Heavy Hammer Scythe > --- INVENTORY (15) --- Huge Storage Unit Large Matter Pod (150) High-powered Shotgun High-powered Shotgun Assault Cannon Flak Cannon Peak State ------------ > --- POWER ------------ Ion Engine > --- PROPULSION ------- Improved Aluminum Leg Improved Aluminum Leg > --- UTILITY ---------- Improved Heat Sink Huge Storage Unit > --- WEAPON ----------- Advanced Beam Cannon Scythe > --- INVENTORY -------- Improved Aluminum Leg Improved Aluminum Leg Improved Heat Sink Large Storage Unit High-capacity Battery Trap Scanner Light Armor Plating Light Armor Plating Light Armor Plating Hardlight Generator Trap Extractor Improved Trap Extractor Particle Gun Beam Cannon Advanced Beam Cannon High-powered Shotgun High-powered Shotgun Assault Cannon Flak Cannon Rocket Launcher Rocket Launcher Heavy Hammer EMP Trap Proton Bomb Trap [Rating: 20] Favorites ----------- Power Ion Engine Engine Ion Engine Propulsion Improved Aluminum Leg Leg Improved Aluminum Leg Wheel Wheel Utility Large Storage Unit Device Improved Heat Sink Storage Large Storage Unit Protection Light Armor Plating Weapon Advanced Beam Cannon Energy Gun Particle Gun Energy Cannon Advanced Beam Cannon Ballistic Gun Light Assault Rifle Ballistic Cannon Assault Cannon Launcher Rocket Launcher Impact Weapon Heavy Hammer Slashing Weapon Scythe Special Melee Weapon Datajack Build | -11 -10 -10 -10 ------- Run | Yrd Mat Min Exi Slots Evolved . | . . . . Power . | . . . . Propulsion . | . . . . Utility . | . . . . Weapon . | . . . . Parts Attached 42 | 7 21 9 5 Power 3 | 1 1 1 . Engine 3 | 1 1 1 . Core . | . . . . Reactor . | . . . . Propulsion 8 | 2 4 1 1 Treads . | . . . . Leg 6 | 2 2 1 1 Wheel 2 | . 2 . . Hover . | . . . . Flight . | . . . . Utility 14 | 2 7 4 1 Device 7 | 1 4 2 . Storage 4 | 1 2 1 . Processor . | . . . . Hackware . | . . . . Protection 3 | . 1 1 1 Artifact . | . . . . Weapon 17 | 2 9 3 3 Energy Gun 5 | 1 4 . . Energy Cannon 5 | . 3 2 . Ballistic Gun 1 | 1 . . . Ballistic Cannon 2 | . . . 2 Launcher 1 | . . . 1 Special Weapon . | . . . . Impact Weapon 1 | . 1 . . Slashing Weapon 1 | . . 1 . Piercing Weapon . | . . . . Special Melee Weapon 1 | . 1 . . Unidentified Prototypes 1 | . 1 . . Parts Lost 6 | . . . 6 Power 1 | . . . 1 Propulsion 2 | . . . 2 Utility 2 | . . . 2 Weapon 1 | . . . 1 Highest Loss Streak 5 | . . . 5 To Critical Strikes . | . . . . Average Backups 14 | 4 14 15 13 Power . | . . . 1 Propulsion 1 | 2 3 1 1 Utility 5 | . 5 7 4 Weapon 5 | 1 4 5 6 Tool/Special . | . . . . Unused Backups 24 | . 6 . 18 Power 4 | . . . 4 Propulsion 2 | . 2 . . Utility 11 | . 2 . 9 Weapon 7 | . 2 . 5 Tool/Special . | . . . . Average Slot Usage (%) 96 | . 99 99 91 Engine 13 | . 14 14 13 Leg 27 | . 26 28 27 Device 10 | . 11 13 6 Storage 14 | . 14 14 14 Protection 3 | . 1 . 7 Energy Gun 7 | . 18 6 . Energy Cannon 9 | . 3 16 8 Launcher 1 | . . . 4 Slashing Weapon 3 | . . 2 6 Special Melee Weapon 1 | . 1 3 1 Peak Build Rating 20 | 9 14 20 20 Average Rating 14 | 5 11 15 14 On Entrance 10 | . 9 14 20 Avg Prop Armor Cover (%) . | . . . . Naked Turns . | . . . . Heaviest Build 94 | 13 34 94 93 Greatest Support 26 | 20 26 26 26 Greatest Overweight (x) 9 | . 2 3 9 Average Overweight (x) 1 | . . 1 1 Largest Inventory Capacity 25 | 8 15 25 25 Average Capacity 17 | 6 14 16 19 Most Carried 25 | 7 15 25 25 Average Carried 15 | 4 14 16 15 Final Capacity 25 | 8 15 25 15 Final Carried 25 | 7 15 25 6 Class Distribution -------------------- 59% | Mutant 40% | Trapper-Mutant Dominant Class ---------------- Mutant | -10/Materials Mutant | -10/Mines Trapper-Mutant | -10/Exiles Resources | -11 -10 -10 -10 ----------- Run | Yrd Mat Min Exi Matter Collected 905 | 276 304 195 130 Remotely . | . . . . Salvage Created 658 | 89 406 163 . Parts 41 | 7 27 7 . Haulers Intercepted 2 | . 2 . . Recyclers Shooed 1 | . 1 . . Parts Field Recycled . | . . . . Retrieved Matter . | . . . . Parts Self-Destructed . | . . . . Prevented . | . . . . Parts Restored . | . . . . Kills | -11 -10 -10 -10 ------- Run | Yrd Mat Min Exi Combat Hostiles Destroyed 14 | . 8 4 2 Guns 8 | . 6 2 . Cannons 6 | . 2 2 2 Classes Destroyed 8 | 2 5 . 1 Tunneler 4 | 3 1 . . Hauler 2 | . 2 . . Recycler 2 | 1 . 1 . Operator 1 | . 1 . . Watcher 3 | . 3 . . Swarmer 7 | . 5 2 . Grunt 5 | . 3 2 . Assembled 2 | . . . 2 Best Kill Streak 3 | 2 3 3 1 Combat Bots Only 3 | . 3 2 1 Max Kills in Single Turn 2 | 1 2 1 1 Gunslinging . | . . . . Exploded . | . . . . Melee . | . . . . Uniques/NPCs Destroyed . | . . . . Combat | -11 -10 -10 -10 -------- Run | Yrd Mat Min Exi Hostile Shots Fired 140 | . 37 31 72 Missed 37 | . 15 7 15 Hits 103 | . 22 24 57 Projectile 103 | . 22 24 57 Critical Strikes 10 | . . 1 9 Damage Taken 1340 | . 185 228 927 Core 267 | . 17 44 206 Absorbed by Shields . | . . . . Regen/Repaired (Parts) 29 | . 29 . . Core Remaining (%) 100 | 100 . . . Volleys Fired 58 | 9 29 13 7 Largest 2 | 2 2 2 1 Hottest 125 | 60 125 125 37 Shots Fired 103 | 13 57 26 7 Gun 76 | 13 50 13 . Cannon 27 | . 7 13 7 Launcher . | . . . . Special . | . . . . Kinetic 27 | 6 14 . 7 Thermal 54 | 7 21 26 . Explosive . | . . . . Electromagnetic 22 | . 22 . . Robot Hit Streak 8 | 4 8 5 4 Robot Miss Streak 5 | 1 4 5 5 Penetration Max . | . . . . Secondary Targets . | . . . . Shots Hit Robots 72 | 9 32 14 17 Core Hits 37 | 6 19 6 6 Critical Kills 1 | . 1 . . Critical Parts Destroyed 2 | . 1 . 1 Critical Strikes 3 | . 2 . 1 Meltdown 1 | . 1 . . Destroy 1 | . 1 . . Smash 1 | . . . 1 Melee Attacks 19 | . 6 2 11 Impact 6 | . 3 . 3 Slashing 6 | . . 2 4 Piercing . | . . . . Sneak Attacks 7 | . 3 . 4 Combat Hostiles . | . . . . Follow-up Attacks 3 | . . . 3 Damage Inflicted 1146 | 89 508 230 319 Guns 546 | 89 336 121 . Cannons 253 | . 54 109 90 Explosions 118 | . 118 . . Melee 229 | . . . 229 Ramming . | . . . . Kinetic 214 | 35 89 . 90 Thermal 536 | 54 252 230 . Explosive . | . . . . Electromagnetic 167 | . 167 . . Impact 134 | . . . 134 Slashing 95 | . . . 95 Piercing . | . . . . Highest Corruption . | . . . . Average Corruption . | . . . . Corruption Purged . | . . . . Corruption Blocked . | . . . . Overload Shots . | . . . . Overflow Damage 48 | . . . 48 Projectiles . | . . . . Explosions . | . . . . Melee 48 | . . . 48 Knockbacks 8 | . . . 8 Impact 2 | . . . 2 Kinetic 6 | . . . 6 Secondary . | . . . . Self-Inflicted Damage . | . . . . Shots . | . . . . Rammed . | . . . . Targets Rammed . | . . . . Kicked . | . . . . Crushed . | . . . . Highest Temperature 171 | 20 84 171 . Average Temperature 42 | 15 27 73 . Received Heat Transfer 75 | . 30 45 . Siege Activations . | . . . . Martial Activations . | . . . . Shielding Activations . | . . . . Robots Disrupted . | . . . . Combat Hostiles . | . . . . Robots Corrupted . | . . . . Combat Hostiles . | . . . . Parts Fried 1 | . 1 . . Impact Corruptions 2 | . . . 2 Robots Melted 1 | . 1 . . Combat Hostiles . | . . . . Parts Melted 6 | . 3 3 . Heat Transferred 1090 | 125 447 518 . Parts Sabotaged . | . . . . Parts Stolen . | . . . . Parts Stripped . | . . . . Power Chain Reactions 2 | . 2 . . Alert | -11 -10 -10 -10 ------- Run | Yrd Mat Min Exi Maximum Alert Level . | . . . . Low Security (%) 100 | 100 100 100 . Level 1 . | . . . . Level 2 . | . . . . Level 3 . | . . . . Level 4 . | . . . . Level 5 . | . . . . High Security . | . . . . Max Security . | . . . . Peak Influence 77 | 10 77 75 . Initial 25 | . . 25 . Average 10 | 1 18 3 . Influence Increases 487 | 20 356 111 . Destroy 0b10 Robot/C 240 | . 160 80 . Destroy 0b10 Robot/NC 60 | 20 35 5 . Destroy Leader 40 | . 30 10 . Successful Hack 45 | . 31 14 . Select Force Hacks 60 | . 60 . . Destroy Structure 12 | . 10 2 . Partial Spotted 15 | . 15 . . Lose Combat Pursuer 15 | . 15 . . Influence Decreases 487 | 20 290 177 . Entered New Map 41 | . . 41 . Time Decay 446 | 20 290 136 . Squads Dispatched 8 | . 8 . . Investigation 7 | . 7 . . Extermination . | . . . . Reinforcement 1 | . 1 . . Assault . | . . . . Garrison . | . . . . Intercept . | . . . . Searches Triggered . | . . . . Construction Impeded . | . . . . Haulers Reinforced . | . . . . Active Scanning Responses . | . . . . Cargo Convoy Interrupts . | . . . . Stealth | -11 -10 -10 -10 --------- Run | Yrd Mat Min Exi Distress Signals . | . . . . Communications Jammed . | . . . . Distress Signals . | . . . . Times Spotted 32 | . 19 5 8 Peak Tracking Total 10 | . 3 3 10 Tactical Retreats 2 | . 1 . 1 Traps | -11 -10 -10 -10 ------- Run | Yrd Mat Min Exi Traps Triggered 1 | . 1 . . Indirectly . | . . . . Trap Hack Attempts 173 | . 93 80 . Triggered . | . . . . Disarmed 5 | . 5 . . Reprogrammed 9 | . 4 5 . Reused 3 | . . . 3 Traps Extracted 9 | . 4 5 . Installed 3 | . . . 3 Triggered . | . . . . Most Traps Carried 9 | . 4 9 9 Machines | -11 -10 -10 -10 ---------- Run | Yrd Mat Min Exi Machines Disabled . | . . . . Max in Single Turn . | . . . . Machines Repaired . | . . . . Machines Dismantled . | . . . . Machines Sabotaged . | . . . . Overloaded Fab Kills . | . . . . Hacking | -11 -10 -10 -10 --------- Run | Yrd Mat Min Exi Machines Accessed 14 | . 10 2 2 Terminals 8 | . 7 1 . Fabricators . | . . . . Repair Stations 1 | . 1 . . Recycling Units 2 | . 2 . . Scanalyzers . | . . . . Garrison Access . | . . . . Total Hacks 48 | . 42 4 2 Successful 24 | . 19 3 2 Failed 24 | . 23 1 . Catastrophic 1 | . . 1 . Database Lockouts . | . . . . Manual 28 | . 24 3 1 Terminals 30 | . 27 3 . Fabricators . | . . . . Repair Stations 9 | . 9 . . Recycling Units 6 | . 6 . . Scanalyzers . | . . . . Garrison Access . | . . . . Terminal Hacks 14 | . 9 3 2 Record 1 | . . . 1 Part Schematic 1 | . . 1 . Robot Schematic 1 | . . 1 . Robot Analysis 5 | . 5 . . Prototype ID Bank 2 | . 2 . . Open Door 1 | . . 1 . Locate Traps 2 | . 2 . . Proto ID Catalog 1 | . . . 1 Fabricator Hacks . | . . . . Repair Station Hacks 4 | . 4 . . Scan Component 2 | . 2 . . Repair 2 | . 2 . . Recycling Unit Hacks 1 | . 1 . . Retrieve Components 1 | . 1 . . Scanalyzer . | . . . . Garrison Access Hacks . | . . . . Unauthorized Hacks 5 | . 5 . . Terminals 3 | . 3 . . Botnet 2 | . 2 . . Operators 1 | . 1 . . Fabricators . | . . . . Repair Stations . | . . . . Recycling Units 2 | . 2 . . Tunnel 2 | . 2 . . Scanalyzers . | . . . . Garrison Access . | . . . . Data Cores Recovered . | . . . . Used . | . . . . Hacking Detections 10 | . 9 1 . Full Trace Events 7 | . 7 . . Feedback Events . | . . . . Feedback Blocked . | . . . . Robot Schematics Acquired 1 | . . 1 . Robots Built . | . . . . Authchips . | . . . . Time . | . . . . Total Robot Build Rating . | . . . . Part Schematics Acquired 1 | . . 1 . Parts Built . | . . . . Authchips . | . . . . Time . | . . . . Total Part Build Rating . | . . . . Part Studies Acquired . | . . . . Parts Repaired 2 | . 2 . . Time 70 | . 70 . . Parts Recycled . | . . . . Recycled Matter . | . . . . Retrieved Matter . | . . . . Retrieved Components 9 | . 9 . . Parts Scanalyzed . | . . . . Part Schematics Acquired . | . . . . Parts Damaged . | . . . . Bothacking | -11 -10 -10 -10 ------------ Run | Yrd Mat Min Exi Used RIF Installer . | . . . . Robots Hacked 6 | . 2 . 4 Non-combat 5 | . 2 . 3 Combat 1 | . . . 1 Robot Hacks Applied 7 | . 3 . 4 parse_system 5 | . 1 . 4 no_distress 2 | . 2 . . Relay Couplers Released . | . . . . Fabnet Peak Effective % . | . . . . Robots Rewired . | . . . . Allies Hacked . | . . . . Hacks Repelled . | . . . . Allies | -11 -10 -10 -10 -------- Run | Yrd Mat Min Exi Total Allies . | . . . . Largest Group . | . . . . Highest-Rated Group . | . . . . Highest-Rated Ally . | . . . . Total Orders . | . . . . Ally Attacks . | . . . . Total Damage . | . . . . Kills . | . . . . Allies Corrupted . | . . . . Allies Melted . | . . . . Intel | -11 -10 -10 -10 ------- Run | Yrd Mat Min Exi Active Infowar (turns) 1750 | 10 1422 318 . Terrain 1432 | 10 1422 . . Traps 318 | . . 318 . Robot Analysis Total 5 | . 5 . . Derelict Logs Recovered 2 | . . 2 . Drone Launches . | . . . . Drone Recoveries . | . . . . Exploration | -11 -10 -10 -10 ------------- Run | Yrd Mat Min Exi Turns Passed 8740 | 116 2339 2656 3629 Spaces Moved 3485 | 65 966 973 1481 Core 12 | 6 . . 6 Treads . | . . . . Legs 3414 | 59 907 973 1475 Wheels 59 | . 59 . . Hover . | . . . . Flight . | . . . . Fastest Speed 50 | 50 105 190 120 Average Speed 210 | 113 176 209 237 Slowest Speed 500 | 120 260 330 500 Overloaded Moves . | . . . . Propulsion Burnouts . | . . . . Robots Hopped . | . . . . Potential Cave-ins . | . . . . Cave-ins Triggered . | . . . . Exploration Rate (%) 68 | 3 99 95 78 Regions Visited 3 Branch Regions 2 Pre-discovered Areas 4 | . 2 1 1 Known Exits Taken . | . . . . Unknown Exits Taken 3 | 1 1 1 . Scrap Searched 1 | . . 1 . Spaces Dug 4 | . 2 2 . Terrain Destroyed 13 | . 11 2 . Melee 4 | . 2 2 . Projectile . | . . . . AOE 9 | . 9 . . Terrain Rammed . | . . . . Walls Destroyed . | . . . . Machines Disabled . | . . . . Actions | -11 -10 -10 -10 --------- Run | Yrd Mat Min Exi Total 4799 | 92 1541 1564 1602 Wait 815 | 4 370 438 3 Move 3482 | 64 965 972 1481 Hop . | . . . . Pick Up 89 | 8 28 21 32 Fast Attach 13 | 6 3 2 2 Attach 20 | 1 9 4 6 Detach 3 | . 1 2 . Swap 39 | . 15 13 11 Drop 88 | . 22 17 49 Fire 58 | 9 29 13 7 Melee 16 | . 6 2 8 Ram . | . . . . Kick . | . . . . Crush . | . . . . Escape Stasis . | . . . . Rewire . | . . . . Trap 176 | . 93 80 3 Miscellaneous . | . . . . Route ------- -11/Scrapyard -10/Materials (discovered 5 exits: [*Mat x3] / *Min / *Sub) -10/Mines (discovered 4 exits: [*Mat x2] / *Exi / *Sub) -10/Exiles (discovered 2 exits: [*Min x2]) History --------- Turn | Location | Event 9 | -11/Scrapyard | Discovered new exit (range 14) 117 | -11/Scrapyard | Entered Materials 118 | -10/Materials | Met a group of wandering Federalists 247 | -10/Materials | Discovered new exit (range 3) 267 | -10/Materials | Lost 4 allies 309 | -10/Materials | Build established: Mutant 748 | -10/Materials | Discovered new exit (range 13) 1022 | -10/Materials | Discovered new exit (range 16) 1134 | -10/Materials | Discovered new exit (range 14) 1385 | -10/Materials | Discovered new exit (range 11) 1760 | -10/Materials | Repaired Particle Gun 2105 | -10/Materials | Repaired Imp. Heat Sink 2456 | -10/Materials | Entered Mines 2691 | -10/Mines | Discovered new exit (range 9) 2716 | -10/Mines | Discovered new exit (range 7) 2837 | -10/Mines | Received a Rocket Launcher from a helpful Derelict 3048 | -10/Mines | Deemed a non-threat by the Exiles lab entrance 3048 | -10/Mines | Discovered new exit (range 5) 3379 | -10/Mines | Met a Derelict who couldn't figure out how to use a Trap Extractor 4163 | -10/Mines | Identified exit to Subcaves 4275 | -10/Mines | Build established: Trapper-Mutant 5112 | -10/Mines | Entered Exiles 5169 | -10/Exiles | Discovered new exit (range 14) 5259 | -10/Exiles | Met 8R-AWN 5286 | -10/Exiles | Met EX-HEX 5311 | -10/Exiles | Warned about trapping Exiles lab 5381 | -10/Exiles | Learned location of Zion (-6) 5408 | -10/Exiles | Met EX-DEC 5484 | -10/Exiles | Visited The Gauntlet 5689 | -10/Exiles | Met EX-BIN 6343 | -10/Exiles | Discovered new exit (range 11) 7719 | -10/Exiles | Build established: Mutant 7850 | -10/Exiles | Aligned with FarCom system 7852 | -10/Exiles | Given EX-Vault access code 8183 | -10/Exiles | Opened EX-Vault 8194 | -10/Exiles | Found PSU Rigger 8197 | -10/Exiles | Found Gui. Plasma Cannon 8208 | -10/Exiles | Found AWS/Autocannon 8247 | -10/Exiles | Warned to stay clear of 0b10 Research branches 8620 | -10/Exiles | Attacked by the Exiles 8672 | -10/Exiles | Core integrity fell below 50% 8695 | -10/Exiles | Lost 5 parts (1p2n1u1w) 8731 | -10/Exiles | Core integrity fell below 20% 8741 | -10/Exiles | Destroyed by 8R-AWN with 8R-AWN's Boregun Last Messages --------------- 08726_ HV Slug penetrates Earth. 08729_ HV Slug penetrates Wall. 08730_ Penetrated by HV Slug. 08730_ HV Slug penetrates Wall. 08731_ Lgt. Armor Plating destroyed. 08732_ Penetrated by HV Slug. 08732_ HV Slug penetrates Wall. 08733_ Hvy. Hammer follow-up attack on 8R-AWN. 08733_ Destroyed Gravity Neutralizer. 08733_ 8R-AWN system corrupted by crushing effect. 08733_ 8R-AWN knocked back. 08733_ Penetrated by HV Slug. 08733_ HV Slug penetrates Wall. 08735_ Penetrated by HV Slug. 08735_ HV Slug penetrates Wall. 08738_ Penetrated by HV Slug. 08738_ HV Slug penetrates Wall. 08740_ Hvy. Hammer follow-up attack on 8R-AWN. 08740_ 8R-AWN knocked back. 08741_ Penetrated by HV Slug. Map ----- +----------------------------------------------------+ | ?????????????????????????????????????????????????? | | ?????????????????????????????????????????????????? | | ?????????????????????????????????????????????????? | | ?????????????????????????????????????????????????? | | ?????????????????????????????????????????????????? | | ?????????????????????????????????????????????????? | | ????????#####????????????????????????????????????? | | ???????## ##???????????????????????????????????? | | ???????# #???????????????????????????????????? | | ???????# < #???????????????????????????????????? | | ???????# ###?????????????????????????????????? | | ???????# #?????????????????????????????????? | | ???????# ![ #??????????????????????????????????? | | ????????# !*! #??????????????????????????????????? | | ????????# ]!]!##?????????????????????????????????? | | ????????## ] #????????????#######??????????????? | | ?????????# #######??????#!! "#??????????????? | | ?????????# #""##?????# "#??????????????? | | ?????????## #?????# "#??????????????? | | ??????????##" ##???## ""#??????????##### | | ??????????#"" #####" ""#??????????# " | | ??????????#### ##" ""#??????????#"" " | | ?????????????## #"" ###??????????#"" | | ??????????????#"## #????????????#"" | | ??????????????####### ###??????????#"" | | ????????????????????#;; @ g ;#??????????# | | ??????????????########" ;##?????????#"" | | ??????????????# !!""""" ##????????### | | ??????????????#! ! ! "### ;;;###???### | | ??????????????#! ] !] "#?## ""#####X# | | ??????????????# ! !!! ##??#" | | ??????????????# !"""" ;;#???#"# * = a % | | ??????????????########## #???#### | | ???????????????????????# #??????### | | ???????????????????????# #????????### | | ???????????????????????###??????????## | | ?????????????????????????????????????## % | | ??????????????????????????????????????##"% | | ???????????????????????????????????????# | | ??????????????????????????????????????##" | | ??????????????????????????????????????#"" | | ?????????????????????????????????????##""" | | ?????????????????????????????????????#""" | | ?????????????????????????????????????#""" | | ?????????????????????????????????????#"" | | ?????????????????????????????????????#""" | | ?????????????????????????????????????#"" | | ?????????????????????????????????????##"" | | ??????????????????????????????????????#"""" | | ??????????????????????????????????????## | +----------------------------------------------------+ Best States ------------- Heat Dissipation 39 Energy Generation 10 Energy Capacity 250 Matter Stores 300 Matter Capacity 300 Sight Range 16 Terrain Scan Range 16 Terrain Scan Density 10 Armor Coverage 150 Evasion (%) 55 Trap Extractor Capacity 6 Item Schematics ----------------- Hcp. Storage Unit | -10/Mines | Hacked Robot Schematics ------------------ O-16 Technician | -10/Mines | Hacked Fabricated ------------ Nothing Repaired ---------- Particle Gun | 69% | -10/Materials Imp. Heat Sink | 85% | -10/Materials Studied --------- None Alien Tech Used ----------------- None Achievements -------------- None Challenges ------------ None Game ------ Seed ImprinterWaveStorm Manual? 0 Play Time 00:48:31 Cumulative 686.5 hours Start 2025.11.14 @ 03:26:56 End 2025.11.14 @ 04:24:38 Sessions 1 Manual Loads 0 Difficulty Rogue Special Mode None Game No. 483 Rogue 483 Adventurer 0 Explorer 0 Win Type - Total 1 Types 1/0/0/0/0/0/0/0/0/0 Lore% 65 Gallery% 67 Achievement% 43 Wizard Run 0 Options --------- Layout 1 ASCII 0 Keyboard 0 Movement Mouse Keybinds 0 Fullscreen 1 Font 20/SmallcapsGlow Map View 54x42 Zoom Use 0% Tactical HUD 1 Map Filters NONE Filters NONE Steam 1 RUN: 98d09f15-cd96-48cc-bacf-bdac2adaba66